fUST/lending_fUST_20240121
["ID","MTS","AMOUNT","RATE_DAILY","PERIOD"]
[312334978,1705788638095,-656.45589949,0.000297,2]
[312334979,1705788638105,-522.93963422,0.000297,2]
[312334980,1705788638115,-1459.60251302,0.000297,2]
[312334981,1705788638125,-748.2997631,0.000297,2]
[312334982,1705788638134,-246.01934779,0.00029701,2]
[312334983,1705788638143,-6148.34366666,0.00029701,2]
[312334984,1705788638152,-24900.0,0.00029702,2]
[312334985,1705788638161,-559.89508294,0.0002979,7]
[312334986,1705788638170,-154.75239617,0.0003,2]
[312334987,1705788638180,-157.8896426,0.0003,2]
[312334988,1705788638189,-260.43027978,0.00030874,4]
[312334989,1705788638198,-342.68202695,0.00030874,4]
[312334990,1705788638208,-178.19682148,0.00030874,4]
[312334991,1705788638217,-236.22782048,0.00030875,2]
[312334992,1705788638226,-155.0,0.00031,2]
[312334993,1705788638236,-238.14143998,0.00031204,4]
[312334994,1705788638245,-10298.58322313,0.00031205,5]
[312334995,1705788638261,-1950.71294823,0.00031205,5]
[312334996,1705788638271,-2433.91,0.0003189,3]
[312334997,1705788638280,-3099.18,0.0003189,3]
[312334998,1705788638289,-154.93802479,0.00031899,4]
[312334999,1705788638298,-16337.29407508,0.000319,2]
[312335000,1705788638310,-1619.86288852,0.000319,2]
[312335001,1705788638321,-51494.44260457,0.000319,2]
[312335002,1705788638330,-150.5,0.0003197,30]
[312335003,1705788638339,-150.5,0.0003198,30]
[312335004,1705788638348,-150.5,0.0003199,30]
[312335005,1705788638357,-270.6351013,0.00031998,4]
[312335006,1705788638366,-1436.15114115,0.00031998,4]
[312335007,1705788638376,-154.96023507,0.00031998,4]
[312335008,1705788638385,-7847.51266548,0.00031999,2]
[312335009,1705788638394,-413.57006194,0.00031999,3]
[312335010,1705788638403,-276.06,0.00031999,2]
[312335011,1705788638412,-276.06,0.00031999,2]
[312335012,1705788638421,-276.06,0.00031999,2]
[312335013,1705788638430,-393.1441642,0.00031999,2]
[312335014,1705788638440,-500.0,0.00031999,2]
[312335015,1705788638449,-212.45088213,0.00031999,2]
[312335016,1705788638458,-500.0,0.00031999,2]
[312335017,1705788638467,-407.97997867,0.00031999,2]
[312335018,1705788638477,-449.44879928,0.00031999,2]
[312335019,1705788638486,-500.0,0.00031999,2]
[312335020,1705788638496,-500.0,0.00031999,2]
[312335021,1705788638506,-500.0,0.00031999,2]
[312335022,1705788638514,-500.0,0.00031999,2]
[312335023,1705788638524,-484.81226959,0.00031999,2]
[312335024,1705788638533,-500.0,0.00031999,2]
[312335025,1705788638542,-500.0,0.00031999,2]
[312335026,1705788638551,-500.0,0.00031999,2]
[312335027,1705788638560,-500.0,0.00031999,2]
[312335028,1705788638570,-500.0,0.00031999,2]
[312335029,1705788638579,-500.0,0.00031999,2]
[312335030,1705788638589,-500.0,0.00031999,2]
[312335031,1705788638598,-500.0,0.00031999,2]
[312335032,1705788638608,-500.0,0.00031999,2]
[312335033,1705788638617,-500.0,0.00031999,2]
[312335034,1705788638626,-500.0,0.00031999,2]
[312335035,1705788638636,-285201.86665853,0.00032,4]
[312335036,1705788638646,-154.75239617,0.00032,4]
[312335037,1705788638655,-155.0,0.0003237,2]
[312335038,1705788638665,-1094.47895322,0.000325,20]
[312335039,1705788638674,-200.0,0.00032669,15]
[312335040,1705788638683,-1273.92331985,0.00032837,2]
[312335041,1705788638693,-345.45929412,0.00032846,4]
[312335042,1705788638702,-394.3376895,0.00032847,2]
[312335043,1705788638711,-4321.29306998,0.00032847,4]
[312335044,1705788638720,-283.12887752,0.00032847,3]
[312335045,1705788638730,-686.62627649,0.00032847,4]
[312335046,1705788638739,-4113.94293228,0.00032847,2]
[312335047,1705788638749,-463.23841404,0.00032847,2]
[312335048,1705788638758,-700.0,0.00032847,2]
[312335049,1705788638767,-748.63939429,0.00032847,2]
[312335050,1705788638777,-250.0,0.00032876,7]
[312335051,1705788638786,-154.75239617,0.00033,4]
[312335052,1705788638799,-2846.05665284,0.00033,2]
[312335053,1705788638809,-165.0,0.00033,2]
[312335054,1705788638818,-218.0,0.00033,2]
[312335055,1705788638828,-171.0,0.00033,2]
[312335056,1705788638837,-5000.0,0.00033039,7]
[312335057,1705788638846,-22360.39369623,0.00033055,4]
[312335058,1705788638856,-5000.0,0.00033055,7]
[312335059,1705788638866,-9050.91088192,0.00033055,4]
[312335060,1705788638876,-5000.0,0.00033055,7]
[312335061,1705788638886,-2102.86214241,0.00033055,4]
[312335062,1705788639027,-1220.07091436,0.00033055,4]
[312335063,1705788639037,-218.0,0.00033151,2]
[312335064,1705788639046,-155.0,0.0003374,2]
[312335065,1705788639056,-1550.76333748,0.00034,3]
[312335066,1705788639065,-10990.39266955,0.00034,2]
[312335067,1705788639075,-660.24671343,0.000342,2]
[312335068,1705788639084,-500.0,0.00034246,7]
[312335069,1705788639094,-218.0,0.00034521,2]
[312335070,1705788639103,-150.74373565,0.00034872,2]
[312335071,1705788639112,-525.78711599,0.00035,4]
[312335072,1705788639121,-333.12649891,0.00035,4]
[312335073,1705788639131,-154.75239617,0.00035,6]
[312335074,1705788639140,-3119.96924767,0.00035,20]
[312335075,1705788639150,-2356.16401148,0.00035,2]
[312335076,1705788639159,-2085.08363542,0.00035,4]
[312335077,1705788639168,-591.88726683,0.00035,2]
[312335078,1705788639177,-154.75239617,0.00035,4]
[312335079,1705788639187,-6763.78500734,0.00035,4]
[312335080,1705788639197,-154.75239617,0.00035,2]
[312335081,1705788639206,-31980.30894113,0.00035,4]
[312335082,1705788639216,-548.14664073,0.00035,7]
[312335083,1705788639225,-155.0,0.0003511,2]
[312335084,1705788639234,-500.0,0.000353,7]
[312335085,1705788639243,-4425.50824305,0.000355,14]
[312335086,1705788639253,-500.0,0.000356,7]
[312335087,1705788639262,-500.0,0.00035616,2]
[312335088,1705788639272,-500.0,0.00035616,2]
[312335089,1705788639281,-500.0,0.00035616,2]
[312335090,1705788639290,-500.0,0.00035616,2]
[312335091,1705788639299,-500.0,0.00035616,2]
[312335092,1705788639311,-500.0,0.00035616,2]
[312335093,1705788639325,-500.0,0.00035616,2]
[312335094,1705788639340,-291.50651603,0.00035616,2]
[312335095,1705788639349,-750.0,0.00035616,7]
[312335096,1705788639358,-182.36949,0.00035616,120]
[312335097,1705788639367,-151.0,0.00035695,4]
[312335098,1705788639377,-160.81104418,0.00035749,2]
[312335099,1705788639386,-151.0,0.00035892,4]
[312335100,1705788639396,-500.0,0.000359,7]
[312335101,1705788639405,-280.0,0.00035936,15]
[312335102,1705788639414,-395.0122332,0.00035956,2]
[312335103,1705788639427,-4604.9877668,0.00035956,2]
[312335104,1705788639436,-151.0,0.00036088,4]
[312335105,1705788639445,-220.0,0.00036247,2]
[312335106,1705788639455,-151.0,0.00036284,4]
[312335107,1705788639464,-263.54542461,0.0003648,2]
[312335108,1705788639473,-151.0,0.00036481,4]
[312335109,1705788639483,-151.0,0.00036677,4]
[312335110,1705788639492,-151.0,0.00036873,4]
[312335111,1705788639501,-1000.0,0.00036986,7]
[312335112,1705788639510,-154.75239617,0.00037,4]
[312335113,1705788639521,-151.0,0.0003707,4]
[312335114,1705788639531,-151.0,0.00037266,4]
[312335115,1705788639541,-151.0,0.00037462,4]
[312335116,1705788639551,-242.01282063,0.0003755,5]
[312335117,1705788639561,-151.0,0.00037658,4]
[312335118,1705788639571,-916.72171696,0.00037739,10]
[312335119,1705788639582,-5000.0,0.00037846,7]
[312335120,1705788639593,-5000.0,0.00037846,7]
[312335121,1705788639603,-72.36667321,0.00037851,7]
[312335122,1705788639616,-4927.63332679,0.00037851,7]
[312335123,1705788639625,-151.0,0.00037855,4]
[312335124,1705788639634,-500.0,0.000379,7]
[312335125,1705788639643,-1975.89673515,0.00037917,7]
[312335128,1705788641034,-1497.88502726,0.000297,2]
[312335129,1705788641043,-2569.16642929,0.00037917,7]
[312335130,1705788641053,-1429.55506106,0.00037917,4]
[312335131,1705788641062,-523.9637542,0.00038,38]
[312335132,1705788641074,-476.0362458,0.00038,38]
[312335133,1705788641083,-3679.38300141,0.00038,4]
[312335134,1705788641092,-2139.23248446,0.00038,4]
[312335135,1705788641101,-988.53901759,0.00038,4]
[312335136,1705788641125,-1011.46098241,0.00038,4]
[312335137,1705788641135,-243.86975387,0.00038048,4]
[312335138,1705788641144,-276.06,0.00038048,2]
[312335139,1705788641153,-276.06,0.00038048,2]
[312335140,1705788641162,-276.06,0.00038048,2]
[312335141,1705788641172,-276.06,0.00038048,2]
[312335142,1705788641180,-276.06,0.00038048,2]
[312335143,1705788641190,-276.06,0.00038048,2]
[312335144,1705788641199,-2461.47298761,0.00038049,2]
[312335145,1705788641210,-7930.74652699,0.00038049,2]
[312335146,1705788641223,-13139.83560549,0.00038049,2]
[312335147,1705788641235,-59781.32711322,0.00038049,2]
[312335148,1705788641244,-475.68781302,0.00038049,2]
[312335149,1705788641253,-620.66988602,0.00038049,4]
[312335150,1705788641263,-500.0,0.00038049,4]
[312335151,1705788641271,-20.93715944,0.00038049,4]
[312335182,1705788643181,-2582.65,0.00038039,3]
[312335183,1705788643191,-391.38733821,0.00038049,4]
[312335184,1705788643199,-192.48830428,0.00038049,4]
[312335185,1705788643208,-457.79124181,0.00038049,4]
[312335186,1705788643219,-500.0,0.00038049,4]
[312335187,1705788643228,-500.0,0.00038049,4]
[312335188,1705788643238,-555.52663894,0.00038049,4]
[312335189,1705788643247,-44.22998526,0.00038049,4]
[312335190,1705788643261,-120.69981379,0.00038049,4]
[312335191,1705788643271,-168.49035608,0.00038049,7]
[312335192,1705788643282,-427.47052928,0.00038049,7]
[312335193,1705788643290,-500.0,0.00038049,7]
[312335194,1705788643299,-174.84856229,0.00038049,7]
[312335195,1705788643308,-500.0,0.00038049,7]
[312335196,1705788643317,-263.49073856,0.00038049,7]
[312335308,1705789832104,-154.75239617,0.0002876,4]
[312335310,1705789832114,-158.61013242,0.00028761,2]
[312335312,1705789832123,-81.05391088,0.00028767,2]
[312335314,1705789832134,-77.13006912,0.00028767,2]
[312335316,1705789832144,-24900.0,0.00030296,2]
[312335318,1705789832157,-895.6950221,0.000305,6]
[312335320,1705789832166,-155.0,0.00031,2]
[312335322,1705789832176,-51285.71823129,0.000319,2]
[312335324,1705789832187,-1008.76414421,0.000319,2]
[312335411,1705789838235,-2824.94476013,0.00030294,4]
[312335412,1705789838246,-238.14143998,0.00031,4]
[312335413,1705789838255,-453.60335202,0.000319,2]
[312335414,1705789838265,-155.79751343,0.000319,2]
[312335415,1705789838274,-1045.90652664,0.00031966,4]
[312335416,1705789838283,-150.5,0.0003197,30]
[312335417,1705789838292,-150.5,0.0003198,30]
[312335418,1705789838302,-150.5,0.0003199,30]
[312335419,1705789838311,-3090.54,0.0003199,3]
[312335420,1705789838321,-157.64272796,0.00031998,4]
[312335421,1705789838331,-154.96023507,0.00031998,4]
[312335422,1705789838340,-7957.69581218,0.00031998,2]
[312335423,1705789838349,-270.6351013,0.00031998,4]
[312335424,1705789838358,-1279.77469611,0.00031998,4]
[312335425,1705789838367,-413.57006194,0.00031999,3]
[312335426,1705789838376,-285201.86665853,0.00032,4]
[312335427,1705789838386,-154.75239617,0.00032,4]
[312335428,1705789838394,-155.0,0.0003237,2]
[312335429,1705789838403,-1094.47895322,0.000325,20]
[312335430,1705789838412,-250.0,0.00032876,7]
[312335431,1705789838421,-2689.5082559,0.00032879,2]
[312335432,1705789838430,-1478.84775447,0.00032879,2]
[312335433,1705789838440,-927.20004626,0.00032879,2]
[312335434,1705789838449,-434.10614033,0.00032879,2]
[312335435,1705789838458,-210.0,0.00032879,2]
[312335436,1705789838467,-154.75239617,0.00033,4]
[312335437,1705789838476,-165.0,0.00033,2]
[312335438,1705789838486,-171.0,0.00033,2]
[312335439,1705789838494,-393.1441642,0.00033144,2]
[312335440,1705789838504,-407.97997867,0.00033144,2]
[312335441,1705789838513,-498.71561749,0.00033144,2]
[312335442,1705789838522,-500.0,0.00033144,2]
[312335443,1705789838532,-500.0,0.00033144,2]
[312335444,1705789838541,-500.0,0.00033144,2]
[312335445,1705789838551,-500.0,0.00033144,2]
[312335446,1705789838560,-500.0,0.00033144,2]
[312335447,1705789838712,-500.0,0.00033144,2]
[312335448,1705789838722,-406.30140793,0.00033144,2]
[312335449,1705789838731,-500.0,0.00033144,2]
[312335450,1705789838740,-500.0,0.00033144,2]
[312335451,1705789838749,-500.0,0.00033144,2]
[312335452,1705789838758,-500.0,0.00033144,2]
[312335453,1705789838767,-500.0,0.00033144,2]
[312335454,1705789838776,-500.0,0.00033144,2]
[312335455,1705789838785,-500.0,0.00033144,2]
[312335456,1705789838794,-500.0,0.00033144,2]
[312335457,1705789838803,-471.83711734,0.00033144,2]
[312335458,1705789838812,-500.0,0.00033144,2]
[312335459,1705789838821,-500.0,0.00033144,2]
[312335460,1705789838831,-21676.77185621,0.00033145,4]
[312335461,1705789838840,-6731.10090833,0.00033145,4]
[312335462,1705789838849,-2524.85763151,0.00033145,4]
[312335463,1705789838859,-1609.47548758,0.00033145,4]
[312335464,1705789838868,-155.0,0.0003374,2]
[312335465,1705789838877,-200.0,0.00033757,15]
[312335466,1705789838886,-306.43087312,0.00034243,2]
[312335467,1705789838895,-154.75239617,0.00034244,2]
[312335468,1705789838904,-500.0,0.00034246,7]
[312335469,1705789838913,-150.75878594,0.00034865,2]
[312335470,1705789838922,-3119.96924767,0.00035,20]
[312335471,1705789838931,-2085.08363542,0.00035,4]
[312335472,1705789838940,-333.12649891,0.00035,4]
[312335473,1705789838949,-591.88726683,0.00035,2]
[312335474,1705789838958,-31980.30894113,0.00035,4]
[312335475,1705789838967,-154.75239617,0.00035,4]
[312335476,1705789838976,-154.75239617,0.00035,2]
[312335477,1705789838986,-6763.78500734,0.00035,4]
[312335478,1705789838995,-2356.16401148,0.00035,2]
[312335479,1705789839005,-154.75239617,0.00035,6]
[312335480,1705789839015,-155.0,0.0003511,2]
[312335481,1705789839024,-500.0,0.000353,7]
[312335482,1705789839033,-4425.50824305,0.000355,14]
[312335483,1705789839044,-750.0,0.00035616,7]
[312335484,1705789839053,-500.0,0.00035616,2]
[312335485,1705789839063,-500.0,0.00035616,2]
[312335486,1705789839072,-500.0,0.00035616,2]
[312335487,1705789839081,-500.0,0.00035616,2]
[312335488,1705789839091,-500.0,0.00035616,2]
[312335489,1705789839101,-500.0,0.00035616,2]
[312335490,1705789839111,-500.0,0.00035616,2]
[312335491,1705789839120,-500.0,0.00035616,2]
[312335492,1705789839130,-500.0,0.00035616,2]
[312335493,1705789839140,-500.0,0.00035616,2]
[312335494,1705789839152,-500.0,0.00035616,2]
[312335495,1705789839161,-500.0,0.00035616,2]
[312335496,1705789839170,-500.0,0.00035616,2]
[312335497,1705789839179,-500.0,0.00035616,2]
[312335498,1705789839190,-500.0,0.00035616,2]
[312335499,1705789839200,-500.0,0.00035616,2]
[312335500,1705789839210,-278.72290024,0.00035616,2]
[312335501,1705789839219,-182.36949,0.00035616,120]
[312335502,1705789839229,-160.81104418,0.00035749,2]
[312335503,1705789839239,-194.0,0.0003589,2]
[312335504,1705789839248,-660.24671343,0.00035949,2]
[312335505,1705789839257,-264.70552611,0.00035955,4]
[312335506,1705789839267,-395.0122332,0.00035956,2]
[312335507,1705789839276,-194.0,0.00036,2]
[312335508,1705789839287,-175.39,0.00036414,2]
[312335509,1705789839296,-175.39,0.00036414,2]
[312335510,1705789839307,-175.39,0.00036414,2]
[312335511,1705789839317,-50000.0,0.00036415,7]
[312335512,1705789839326,-32024.91240008,0.00036415,7]
[312335513,1705789839340,-5409.43296545,0.00036415,7]
[312335514,1705789839352,-7078.70767653,0.00036415,7]
[312335515,1705789839363,-5486.94695794,0.00036415,7]
[312335516,1705789839373,-155.0,0.0003648,2]
[312335517,1705789839382,-151.0,0.00036651,4]
[312335518,1705789839391,-151.0,0.00036887,4]
[312335519,1705789839400,-1000.0,0.00036986,7]
[312335520,1705789839410,-228.68438216,0.00037,4]
[312335521,1705789839419,-151.0,0.00037124,4]
[312335522,1705789839429,-280.0,0.00037132,15]
[312335523,1705789839440,-500.0,0.000373,7]
[312335524,1705789839450,-151.0,0.00037361,4]
[312335525,1705789839461,-194.0,0.00037397,2]
[312335526,1705789839469,-151.0,0.00037597,4]
[312335527,1705789839479,-1000.0,0.00037739,10]
[312335528,1705789839488,-1000.0,0.0003775,10]
[312335529,1705789839497,-151.0,0.00037834,4]
[312335530,1705789839506,-155.0,0.0003785,2]
[312335531,1705789839515,-242.01282063,0.00037859,5]
[312335532,1705789839524,-1502.30538734,0.00037881,7]
[312335533,1705789839539,-394.89213205,0.00037881,7]
[312335653,1705789841260,-201.69748604,0.00035,2]
[312335654,1705789841269,-201.69748604,0.000357,2]
[312335655,1705789841279,-201.69748604,0.000364,2]
[312335656,1705789841288,-242.03698325,0.000371,5]
[312335657,1705789841298,-242.03698325,0.000378,5]
[312335658,1705789841308,-1727.55207306,0.00037881,7]
[312335686,1705789843255,-622.93575481,0.00037881,7]
[312335697,1705789846218,-161.0,0.0003589,2]
[312335698,1705789846229,-161.0,0.00036,2]
[312335699,1705789846239,-752.31465274,0.00037881,7]
[312335700,1705789846249,-2806.75642337,0.00037884,7]
[312335708,1705790370196,745.0,0.00029,30]
[312335713,1705790817082,-154.75239617,0.00021979,4]
[312335714,1705790817103,-154.75239617,0.0002198,2]
[312335715,1705790817123,-3.05412479,0.0002198,2]
[312335717,1705790826077,-155.55600763,0.0002198,2]
[312335718,1705790826097,-2026.15096953,0.00021999,2]
[312335719,1705790851080,-809.29102606,0.00021999,2]
[312335720,1705790851101,-292.78022956,0.00022,4]
[312335721,1705790851121,-1570.89243892,0.00023,2]
[312335722,1705790851140,-275.6367708,0.00025537,2]
[312335723,1705790851160,-158.166101,0.00028767,2]
[312335724,1705790851181,-154.75239617,0.00028798,4]
[312335725,1705790851202,-7277.85038376,0.00028855,2]
[312335871,1705791038739,-154.75239617,0.00028798,4]
[312335873,1705791038749,-16619.37831954,0.00028855,2]
[312335875,1705791038758,-3216.27669923,0.00028855,2]
[312335877,1705791038768,-209.528705,0.00029273,2]
[312335879,1705791038777,-166.666666,0.00030255,2]
[312335881,1705791038786,-260.27697716,0.00030398,4]
[312335883,1705791038795,-401.28623405,0.000308,2]
[312335885,1705791038804,-155.0,0.00031,2]
[312335887,1705791038813,-238.14143998,0.00031,4]
[312335889,1705791038823,-166.666666,0.0003163,2]
[312335891,1705791038832,-200.0,0.00031739,15]
[312335893,1705791038841,-155.79751343,0.000319,2]
[312335895,1705791038850,-1045.90652664,0.00031966,4]
[312335897,1705791038859,-150.5,0.0003197,30]
[312335899,1705791038868,-150.5,0.0003198,30]
[312335901,1705791038877,-150.5,0.0003199,30]
[312335903,1705791038887,-2246.14,0.0003199,3]
[312335905,1705791038896,-154.96023507,0.00031998,4]
[312335923,1705791039049,-682.20107228,0.00031998,4]
[312335925,1705791039058,-154.95351395,0.00031998,4]
[312335927,1705791039067,-154.95351395,0.00031998,4]
[312335929,1705791039076,-327.38324213,0.00031998,4]
[312335931,1705791039086,-157.64272796,0.00031998,4]
[312335933,1705791039094,-345.45929412,0.00031998,4]
[312335935,1705791039103,-1279.77469611,0.00031998,4]
[312335937,1705791039112,-270.6351013,0.00031999,4]
[312335939,1705791039122,-7957.69581218,0.00031999,2]
[312335941,1705791039130,-413.57006194,0.00031999,3]
[312335943,1705791039139,-285201.86665853,0.00032,4]
[312335945,1705791039148,-154.75239617,0.00032,4]
[312335947,1705791039157,-680.135257,0.00032,3]
[312335949,1705791039167,-155.0,0.0003237,2]
[312335951,1705791039176,-150.75878594,0.0003245,2]
[312335953,1705791039185,-1094.47895322,0.000325,20]
[312335955,1705791039195,-250.0,0.00032876,7]
[312335957,1705791039203,-4412.23549112,0.00032939,2]
[312335959,1705791039213,-896.50275196,0.00032939,2]
[312335961,1705791039222,-572.98504992,0.00032939,2]
[312335963,1705791039231,-244.62498591,0.00032939,2]
[312335965,1705791039241,-397.4197893,0.00032939,2]
[312335967,1705791039250,-150.90283209,0.00032939,2]
[312335969,1705791039259,-154.580211,0.00032939,2]
[312335971,1705791039269,-432.82459081,0.00032939,2]
[312335973,1705791039278,-154.75239617,0.00033,4]
[312335974,1705791039287,-165.0,0.00033,2]
[312335975,1705791039296,-171.0,0.00033,2]
[312335976,1705791039305,-166.666666,0.00033005,2]
[312335977,1705791039316,-45072.34273074,0.00033197,6]
[312335978,1705791039325,-24549.99083118,0.00033197,4]
[312335979,1705791039335,-3796.35142217,0.00033197,4]
[312335980,1705791039345,-155.0,0.0003374,2]
[312335981,1705791039354,-154.75239617,0.00034096,2]
[312335982,1705791039366,-500.0,0.00034246,7]
[312335983,1705791039376,-306.43087312,0.00034291,2]
[312335984,1705791039386,-660.24671343,0.00034315,2]
[312335985,1705791039395,-166.666666,0.00034379,2]
[312335986,1705791039405,-280.0,0.00034913,15]
[312335987,1705791039414,-500.0,0.00034997,2]
[312335988,1705791039424,-393.1441642,0.00034997,2]
[312335989,1705791039434,-407.97997867,0.00034997,2]
[312335990,1705791039444,-500.0,0.00034997,2]
[312335991,1705791039453,-500.0,0.00034997,2]
[312335992,1705791039463,-498.71561749,0.00034997,2]
[312335994,1705791039473,-500.0,0.00034997,2]
[312335995,1705791039482,-500.0,0.00034997,2]
[312335997,1705791039492,-500.0,0.00034997,2]
[312335998,1705791039502,-500.0,0.00034997,2]
[312335999,1705791039513,-406.30140793,0.00034997,2]
[312336000,1705791039531,-500.0,0.00034997,2]
[312336001,1705791039552,-500.0,0.00034997,2]
[312336003,1705791039568,-500.0,0.00034997,2]
[312336005,1705791039578,-471.83711734,0.00034997,2]
[312336007,1705791039588,-500.0,0.00034997,2]
[312336008,1705791039598,-500.0,0.00034997,2]
[312336010,1705791039608,-500.0,0.00034997,2]
[312336012,1705791039618,-500.0,0.00034997,2]
[312336014,1705791039630,-500.0,0.00034997,2]
[312336016,1705791039647,-500.0,0.00034997,2]
[312336018,1705791039656,-2356.16401148,0.00035,2]
[312336019,1705791039666,-31980.30894113,0.00035,4]
[312336022,1705791039675,-154.75239617,0.00035,2]
[312336024,1705791039684,-6763.78500734,0.00035,4]
[312336026,1705791039693,-333.12649891,0.00035,4]
[312336028,1705791039702,-2085.08363542,0.00035,4]
[312336030,1705791039711,-591.88726683,0.00035,2]
[312336032,1705791039720,-3119.96924767,0.00035,20]
[312336034,1705791039728,-154.75239617,0.00035,4]
[312336035,1705791039737,-154.75239617,0.00035,6]
[312336037,1705791039746,-4425.50824305,0.000355,14]
[312336039,1705791039755,-500.0,0.000356,7]
[312336042,1705791039765,-896.08100751,0.00035616,7]
[312336044,1705791039774,-500.0,0.00035616,2]
[312336045,1705791039783,-500.0,0.00035616,2]
[312336047,1705791039793,-500.0,0.00035616,2]
[312336050,1705791039802,-500.0,0.00035616,2]
[312336052,1705791039811,-500.0,0.00035616,2]
[312336053,1705791039820,-500.0,0.00035616,2]
[312336057,1705791039830,-500.0,0.00035616,2]
[312336059,1705791039839,-500.0,0.00035616,2]
[312336062,1705791039848,-500.0,0.00035616,2]
[312336064,1705791039857,-500.0,0.00035616,2]
[312336066,1705791039866,-500.0,0.00035616,2]
[312336068,1705791039876,-500.0,0.00035616,2]
[312336070,1705791039885,-500.0,0.00035616,2]
[312336073,1705791039894,-500.0,0.00035616,2]
[312336074,1705791039904,-500.0,0.00035616,2]
[312336077,1705791039914,-500.0,0.00035616,2]
[312336079,1705791039923,-278.72290024,0.00035616,2]
[312336080,1705791039932,-182.36949,0.00035616,120]
[312336083,1705791039942,-160.81104418,0.00035749,2]
[312336085,1705791039951,-172.0,0.0003589,2]
[312336086,1705791039961,-395.0122332,0.00035956,2]
[312336088,1705791039970,-172.0,0.00036,2]
[312336091,1705791039979,-150.75878594,0.00036055,2]
[312336093,1705791039988,-250.09073482,0.00036055,2]
[312336094,1705791039997,-500.0,0.000362,7]
[312336096,1705791040006,-301.51757188,0.00036661,4]
[312336098,1705791040015,-1000.0,0.000372,7]
[312336100,1705791040024,-603.03514377,0.00037277,7]
[312336103,1705791040034,-172.0,0.00037397,2]
[312336105,1705791040043,-362.9104991,0.00037695,5]
[312336107,1705791040053,-1273.92331985,0.00037873,2]
[312336108,1705791040062,-1436.15114115,0.00037882,4]
[312336110,1705791040071,-2193.24357663,0.00037884,7]
[312336112,1705791040079,-525.78711599,0.00037884,4]
[312336114,1705791040088,-980.8946807,0.00037884,4]
[312336116,1705791040098,-283.12887752,0.00037884,3]
[312336118,1705791040107,-5000.0,0.00037902,7]
[312336120,1705791040115,-166.72715655,0.00037904,4]
[312336122,1705791040124,-2259.39717261,0.00037922,7]
[312336471,1705791043347,-173.0,0.00036,2]
[312336472,1705791043357,-173.0,0.00037397,2]
[312336473,1705791043366,-2740.60282739,0.00037922,7]
[312336474,1705791043375,-5000.0,0.00037922,7]
[312336475,1705791043384,-2139.23248446,0.00038,4]
[312336476,1705791043393,-1500.0,0.00038,2]
[312336477,1705791043402,-2000.0,0.00038048,4]
[312336478,1705791043411,-2857.85483986,0.00038048,2]
[312336479,1705791043421,-710.35355073,0.00038048,4]
[312336480,1705791043430,-291.71260575,0.00038049,2]
[312336481,1705791043440,-575.0,0.000381,2]
[312336482,1705791043450,-264.70552611,0.00038101,4]
[312336483,1705791043460,-3329.0826307,0.00038103,7]
[312336507,1705791400357,-150.5,0.0003197,30]
[312336508,1705791400384,-275.5,0.0003198,30]
[312336509,1705791400408,-150.5,0.0003198,30]
[312336510,1705791400432,-150.5,0.0003199,30]
[312336511,1705791400456,-150.5,0.0003199,30]
[312336512,1705791400482,-276.28765884,0.00031998,30]
[312336513,1705791411558,-154.75239617,0.00028766,4]
[312336514,1705791459674,-154.75239617,0.00028798,4]
[312336515,1705791459700,-238.14143998,0.00031,4]
[312336516,1705791459726,-529.54677674,0.00031678,4]
[312336517,1705791459753,-1404.11063523,0.00031966,4]
[312336518,1705791459778,-569.44875188,0.00031998,4]
[312336519,1705791468963,-866.70238927,0.00031998,4]
[312336520,1705791468987,-1131.29761073,0.00032,4]